lending/lending_fUSD_20250719
["ID","MTS","AMOUNT","RATE_DAILY","PERIOD"]
[373328898,1752947473993,-480.0,0.00019726,2]
[373328899,1752947474003,-480.0,0.00019726,2]
[373328900,1752947474014,-480.0,0.00019726,2]
[373328901,1752947474026,-480.0,0.00019726,2]
[373328902,1752947474037,-684.65,0.00019726,2]
[373328903,1752947474047,-480.0,0.00019726,2]
[373328904,1752947474058,-480.0,0.00019726,2]
[373328905,1752947474069,-845.48,0.00019726,2]
[373328906,1752947474080,-480.0,0.00019726,2]
[373328907,1752947474090,-480.0,0.00019726,2]
[373328908,1752947474101,-151.0,0.00019726,2]
[373328909,1752947474112,-480.0,0.00019726,2]
[373328910,1752947474123,-480.0,0.00019726,2]
[373328911,1752947474134,-487.4,0.00019726,2]
[373328912,1752947474145,-151.0,0.00019726,2]
[373328913,1752947474155,-480.0,0.00019726,2]
[373328914,1752947474167,-480.0,0.00019726,2]
[373328915,1752947474178,-737.96,0.00019726,2]
[373328916,1752947474188,-480.0,0.00019726,2]
[373328917,1752947474199,-610.57,0.00019726,2]
[373328918,1752947474211,-480.0,0.00019726,2]
[373328919,1752947474221,-480.0,0.00019726,2]
[373328920,1752947474232,-480.0,0.00019726,2]
[373328921,1752947474242,-480.0,0.00019726,2]
[373328922,1752947474253,-480.0,0.00019726,2]
[373328923,1752947474263,-493.38,0.00019726,2]
[373328924,1752947474273,-630.627786,0.00019726,2]
[373328925,1752947474284,-480.0,0.00019726,2]
[373328926,1752947474295,-480.0,0.00019726,2]
[373328927,1752947474306,-480.0,0.00019726,2]
[373328928,1752947474316,-630.627786,0.00019726,2]
[373328929,1752947474327,-505.47044331,0.00019726,2]
[373328930,1752947474343,-1027.52,0.00019726,2]
[373328931,1752947474363,-151.0,0.00019726,2]
[373328932,1752947474374,-480.0,0.00019726,2]
[373328933,1752947474384,-480.0,0.00019726,2]
[373328934,1752947474395,-1665.8,0.00019726,2]
[373328935,1752947474406,-684.14,0.00019726,2]
[373328936,1752947474416,-480.0,0.00019726,2]
[373328937,1752947474427,-448.99,0.00019726,2]
[373328938,1752947474438,-480.0,0.00019726,2]
[373328939,1752947474448,-480.0,0.00019726,2]
[373328940,1752947474458,-866.32,0.00019726,2]
[373328941,1752947474469,-1613.96,0.00019726,2]
[373328942,1752947474480,-579.97,0.00019726,2]
[373328943,1752947474491,-185.75508058,0.00019726,2]
[373328944,1752947474739,-653.05,0.00019726,2]
[373328945,1752947474750,-1511.88,0.00019726,2]
[373328946,1752947474760,-1760.29,0.00019726,2]
[373328947,1752947474770,-151.0,0.00019726,2]
[373328948,1752947474780,-481.29,0.00019726,2]
[373328949,1752947474790,-649.53,0.00019726,2]
[373328950,1752947474800,-480.0,0.00019726,2]
[373328951,1752947474810,-480.0,0.00019726,2]
[373328952,1752947474820,-548.64,0.00019726,2]
[373328953,1752947474830,-784.63,0.00019726,2]
[373328954,1752947474840,-151.0,0.00019726,2]
[373328955,1752947474850,-769.17,0.00019726,2]
[373328956,1752947474860,-480.0,0.00019726,2]
[373328957,1752947474870,-480.0,0.00019726,2]
[373328958,1752947474880,-624.03,0.00019726,2]
[373328959,1752947474889,-151.0,0.00019726,2]
[373328960,1752947474900,-480.0,0.00019726,2]
[373328961,1752947474910,-566.36,0.00019726,2]
[373328962,1752947474919,-480.0,0.00019726,2]
[373328963,1752947474929,-480.0,0.00019726,2]
[373328964,1752947474942,-565.68,0.00019726,2]
[373328965,1752947474951,-1541.23,0.00019726,2]
[373328966,1752947474963,-480.0,0.00019726,2]
[373328967,1752947474973,-1966.63,0.00019726,2]
[373328968,1752947474985,-1061.566029,0.00019726,2]
[373328969,1752947474995,-1071.078396,0.00019726,2]
[373328970,1752947475006,-1544.9,0.00019726,2]
[373328971,1752947475017,-480.0,0.00019726,2]
[373328972,1752947475029,-1964.37,0.00019726,2]
[373328973,1752947475039,-827.24,0.00019726,2]
[373328974,1752947475049,-4021.3,0.00019726,2]
[373328975,1752947475059,-977.88,0.00019726,2]
[373328976,1752947475069,-517.42,0.00019726,2]
[373328977,1752947475079,-480.0,0.00019726,2]
[373328978,1752947475088,-480.0,0.00019726,2]
[373328979,1752947475099,-382.244973,0.00019726,2]
[373328980,1752947475109,-752.96,0.00019726,2]
[373328981,1752947475119,-378.10229478,0.00019726,2]
[373328982,1752947475129,-830.46,0.00019726,2]
[373328983,1752947475138,-499.4,0.00019726,2]
[373328984,1752947475148,-382.244973,0.00019726,2]
[373328985,1752947475157,-839.21,0.00019726,2]
[373328986,1752947475166,-881.13,0.00019726,2]
[373328987,1752947475176,-480.0,0.00019726,2]
[373328988,1752947475185,-507.57,0.00019726,2]
[373328989,1752947475195,-480.0,0.00019726,2]
[373328990,1752947475204,-1377.35,0.00019726,2]
[373328991,1752947475214,-799.51,0.00019726,2]
[373328992,1752947475223,-2449.77,0.00019726,2]
[373328993,1752947475233,-771.35,0.00019726,2]
[373328994,1752947475242,-480.0,0.00019726,2]
[373328995,1752947475253,-480.0,0.00019726,2]
[373328996,1752947475262,-480.0,0.00019726,2]
[373328997,1752947475272,-556.56,0.00019726,2]
[373328998,1752947475282,-480.0,0.00019726,2]
[373328999,1752947475292,-2751.77,0.00019726,2]
[373329000,1752947475302,-499.43,0.00019726,2]
[373329001,1752947475311,-3635.27,0.00019726,2]
[373329002,1752947475321,-712.0,0.00019726,2]
[373329003,1752947475331,-480.0,0.00019726,2]
[373329004,1752947475342,-707.84,0.00019726,2]
[373329005,1752947475351,-555.4,0.00019726,2]
[373329006,1752947475361,-657.33,0.00019726,2]
[373329007,1752947475371,-626.32,0.00019726,2]
[373329008,1752947475381,-530.66,0.00019726,2]
[373329009,1752947475390,-659.38,0.00019726,2]
[373329010,1752947475401,-891.68,0.00019726,2]
[373329011,1752947475413,-1132.469178,0.00019726,2]
[373329012,1752947475423,-480.0,0.00019726,2]
[373329013,1752947475435,-480.0,0.00019726,2]
[373329014,1752947475445,-651.47,0.00019726,2]
[373329015,1752947475455,-664.87,0.00019726,2]
[373329016,1752947475467,-480.0,0.00019726,2]
[373329017,1752947475477,-1573.49,0.00019726,2]
[373329018,1752947475488,-1091.37,0.00019726,2]
[373329019,1752947475500,-1090.26,0.00019726,2]
[373329020,1752947475509,-3159.4,0.00019726,2]
[373329021,1752947475519,-704.05,0.00019726,2]
[373329022,1752947475531,-713.41,0.00019726,2]
[373329023,1752947475541,-480.0,0.00019726,2]
[373329024,1752947475551,-566.08,0.00019726,2]
[373329025,1752947475562,-480.0,0.00019726,2]
[373329026,1752947475572,-480.0,0.00019726,2]
[373329027,1752947475582,-620.64,0.00019726,2]
[373329028,1752947475593,-656.68,0.00019726,2]
[373329029,1752947475604,-2150.51,0.00019726,2]
[373329030,1752947475614,-368.45,0.00019726,2]
[373329031,1752947475624,-480.0,0.00019726,2]
[373329032,1752947475634,-968.85,0.00019726,2]
[373329033,1752947475644,-1450.72,0.00019726,2]
[373329034,1752947475654,-480.0,0.00019726,2]
[373329035,1752947475664,-480.0,0.00019726,2]
[373329036,1752947475673,-914.06,0.00019726,2]
[373329037,1752947475684,-480.0,0.00019726,2]
[373329038,1752947475693,-528.66,0.00019726,2]
[373329039,1752947475703,-1429.57,0.00019726,2]
[373329040,1752947475714,-714.08,0.00019726,2]
[373329041,1752947475724,-738.22,0.00019726,2]
[373329042,1752947475734,-649.1,0.00019726,2]
[373329043,1752947475744,-480.0,0.00019726,2]
[373329044,1752947475754,-480.0,0.00019726,2]
[373329045,1752947475763,-1323.57,0.00019726,2]
[373329046,1752947475773,-480.0,0.00019726,2]
[373329047,1752947475784,-480.0,0.00019726,2]
[373329048,1752947475793,-480.0,0.00019726,2]
[373329049,1752947475803,-1052.89,0.00019726,2]
[373329050,1752947475814,-480.0,0.00019726,2]
[373329051,1752947475824,-655.199856,0.00019726,2]
[373329052,1752947475834,-480.0,0.00019726,2]
[373329053,1752947475845,-675.43,0.00019726,2]
[373329054,1752947475856,-480.0,0.00019726,2]
[373329055,1752947475866,-368.56804178,0.00019726,2]
[373329056,1752947475878,-480.0,0.00019726,2]
[373329057,1752947475888,-493.0,0.00019726,2]
[373329058,1752947475897,-655.199856,0.00019726,2]
[373329059,1752947475907,-1925.77,0.00019726,2]
[373329060,1752947475917,-480.0,0.00019726,2]
[373329061,1752947475927,-480.0,0.00019726,2]
[373329062,1752947475937,-151.0,0.00019726,2]
[373329063,1752947475950,-480.0,0.00019726,2]
[373329064,1752947475959,-2367.09,0.00019726,2]
[373329065,1752947475969,-1097.63,0.00019726,2]
[373329066,1752947475978,-151.0,0.00019726,2]
[373329067,1752947475989,-480.0,0.00019726,2]
[373329068,1752947475999,-944.49,0.00019726,2]
[373329069,1752947476009,-480.0,0.00019726,2]
[373329070,1752947476021,-480.0,0.00019726,2]
[373329071,1752947476031,-347.41,0.00019726,2]
[373329072,1752947476041,-480.0,0.00019726,2]
[373329073,1752947476051,-887.51,0.00019726,2]
[373329074,1752947476060,-1347.08,0.00019726,2]
[373329075,1752947476070,-340.0,0.00019726,2]
[373329076,1752947476080,-480.0,0.00019726,2]
[373329077,1752947476091,-480.0,0.00019726,2]
[373329078,1752947476101,-480.0,0.00019726,2]
[373329079,1752947476113,-480.0,0.00019726,2]
[373329080,1752947476122,-1573.99,0.00019726,2]
[373329081,1752947476132,-1810.63,0.00019726,2]
[373329082,1752947476142,-686.5,0.00019726,2]
[373329083,1752947476151,-3417.91,0.00019726,2]
[373329084,1752947476164,-1003.56,0.00019726,2]
[373329085,1752947476173,-877.98,0.00019726,2]
[373329086,1752947476183,-480.0,0.00019726,2]
[373329087,1752947476193,-172.89,0.00019726,2]
[373329088,1752947476202,-625.41,0.00019726,2]
[373329089,1752947476213,-697.26,0.00019726,2]
[373329090,1752947476222,-484.73,0.00019726,2]
[373329091,1752947476232,-18779.77,0.00019726,2]
[373329092,1752947476242,-480.0,0.00019726,2]
[373329093,1752947476251,-1128.18,0.00019726,2]
[373329094,1752947476262,-480.0,0.00019726,2]
[373329095,1752947476271,-480.0,0.00019726,2]
[373329096,1752947476280,-480.0,0.00019726,2]
[373329097,1752947476290,-694.15,0.00019726,2]
[373329098,1752947476300,-622.71,0.00019726,2]
[373329099,1752947476310,-2992.01,0.00019726,2]
[373329100,1752947476320,-480.0,0.00019726,2]
[373329101,1752947476330,-671.5,0.00019726,2]
[373329102,1752947476339,-3330.84,0.00019726,2]
[373329103,1752947476349,-512.56,0.00019726,2]
[373329104,1752947476358,-480.0,0.00019726,2]
[373329105,1752947476368,-894.92,0.00019726,2]
[373329106,1752947476377,-400.95,0.00019726,2]
[373329107,1752947476387,-669.69,0.00019726,2]
[373329108,1752947476396,-480.0,0.00019726,2]
[373329109,1752947476407,-480.0,0.00019726,2]
[373329110,1752947476416,-530.32,0.00019726,2]
[373329111,1752947476425,-565.91,0.00019726,2]
[373329112,1752947476435,-480.0,0.00019726,2]
[373329113,1752947476445,-480.0,0.00019726,2]
[373329114,1752947476455,-483.19,0.00019726,2]
[373329115,1752947476465,-5190.67,0.00019726,2]
[373329116,1752947476475,-480.0,0.00019726,2]
[373329117,1752947476484,-480.0,0.00019726,2]
[373329118,1752947476495,-480.0,0.00019726,2]
[373329119,1752947476505,-480.0,0.00019726,2]
[373329120,1752947476516,-480.0,0.00019726,2]
[373329121,1752947476525,-871.01,0.00019726,2]
[373329122,1752947476538,-670.84,0.00019726,2]
[373329123,1752947476548,-541.67,0.00019726,2]
[373329124,1752947476557,-582.58,0.00019726,2]
[373329125,1752947476567,-480.0,0.00019726,2]
[373329126,1752947476578,-340.0,0.00019726,2]
[373329127,1752947476589,-1471.9,0.00019726,2]
[373329128,1752947476599,-506.73,0.00019726,2]
[373329129,1752947476609,-1209.75,0.00019726,2]
[373329130,1752947476618,-480.0,0.00019726,2]
[373329131,1752947476629,-480.0,0.00019726,2]
[373329132,1752947476639,-480.0,0.00019726,2]
[373329133,1752947476649,-483.14234919,0.00019726,2]
[373329134,1752947476658,-480.0,0.00019726,2]
[373329135,1752947476669,-1136.8,0.00019726,2]
[373329136,1752947476679,-480.0,0.00019726,2]
[373329137,1752947476689,-686.18,0.00019726,2]
[373329138,1752947476699,-1787.28,0.00019726,2]
[373329139,1752947476708,-480.0,0.00019726,2]
[373329140,1752947476719,-480.0,0.00019726,2]
[373329141,1752947476728,-613.3,0.00019726,2]
[373329142,1752947476739,-615.16,0.00019726,2]
[373329143,1752947476749,-480.0,0.00019726,2]
[373329144,1752947476760,-480.0,0.00019726,2]
[373329145,1752947476771,-480.0,0.00019726,2]
[373329146,1752947476783,-590.52,0.00019726,2]
[373329147,1752947476793,-480.0,0.00019726,2]
[373329148,1752947476803,-1035.78,0.00019726,2]
[373329149,1752947476813,-1251.49,0.00019726,2]
[373329150,1752947476823,-151.0,0.00019726,2]
[373329151,1752947476832,-480.0,0.00019726,2]
[373329152,1752947476842,-6709.99,0.00019726,2]
[373329153,1752947476851,-480.0,0.00019726,2]
[373329154,1752947476861,-480.0,0.00019726,2]
[373329155,1752947476872,-576.67,0.00019726,2]
[373329156,1752947476882,-259.080109,0.00019726,2]
[373329157,1752947476892,-765.7,0.00019726,2]
[373329158,1752947476903,-1160.29,0.00019726,2]
[373329159,1752947476914,-480.0,0.00019726,2]
[373329160,1752947476925,-480.0,0.00019726,2]
[373329161,1752947476935,-818.404461,0.0001976,2]
[373329162,1752947476949,-215.0738,0.00019785,2]
[373329163,1752947476960,-235.77659628,0.00019785,2]
[373329164,1752947476970,-359.76179104,0.00019785,2]
[373329165,1752947476980,-294.0,0.00019798,2]
[373329166,1752947476992,-150.0,0.000198,2]
[373329167,1752947477002,-294.0,0.00019804,2]
[373329168,1752947477016,-1095.5481816,0.00019821,2]
[373329169,1752947477026,-1000.0,0.00019821,2]
[373329170,1752947477037,-500.0,0.00019821,2]
[373329171,1752947477046,-500.0,0.00019821,2]
[373329172,1752947477056,-506.46204771,0.00019821,2]
[373329173,1752947477066,-1000.0,0.00019821,2]
[373329174,1752947477075,-150.0,0.00019821,2]
[373329175,1752947477085,-1629.03312,0.0001983,2]
[373329176,1752947477094,-151.0,0.00019835,2]
[373329177,1752947477104,-166.46749102,0.00019835,2]
[373329178,1752947477114,-160.0,0.00019835,2]
[373329179,1752947477123,-480.0,0.00019835,2]
[373329180,1752947477196,-480.0,0.00019835,2]
[373329181,1752947477206,-190.0,0.00019835,2]
[373329182,1752947477215,-480.0,0.00019835,2]
[373329183,1752947477225,-216.31,0.00019835,2]
[373329184,1752947477234,-151.0,0.00019835,2]
[373329185,1752947477244,-480.0,0.00019835,2]
[373329186,1752947477256,-480.0,0.00019835,2]
[373329187,1752947477265,-151.0,0.00019835,2]
[373329188,1752947477274,-354.387571,0.00019835,2]
[373329189,1752947477284,-354.387571,0.00019835,2]
[373329190,1752947477293,-151.0,0.00019835,2]
[373329191,1752947477302,-151.0,0.00019835,2]
[373329192,1752947477311,-151.0,0.00019835,2]
[373329193,1752947477321,-152.763305,0.00019835,2]
[373329194,1752947477330,-271.735795,0.00019835,2]
[373329195,1752947477339,-271.735795,0.00019835,2]
[373329196,1752947477348,-151.0,0.00019835,2]
[373329197,1752947477358,-151.0,0.00019835,2]
[373329198,1752947477369,-271.96237588,0.00019835,2]
[373329199,1752947477379,-581.97,0.00019835,2]
[373329200,1752947477388,-151.0,0.00019835,2]
[373329201,1752947477397,-151.0,0.00019835,2]
[373329202,1752947477407,-480.0,0.00019835,2]
[373329203,1752947477416,-288.937377,0.00019835,2]
[373329204,1752947477425,-1032.82,0.00019835,2]
[373329205,1752947477436,-151.0,0.00019835,2]
[373329206,1752947477446,-480.0,0.00019835,2]
[373329207,1752947477456,-151.0,0.00019835,2]
[373329208,1752947477466,-480.0,0.00019835,2]
[373329209,1752947477475,-480.0,0.00019835,2]
[373329210,1752947477487,-480.0,0.00019835,2]
[373329211,1752947477496,-480.0,0.00019835,2]
[373329212,1752947477505,-511.8,0.00019835,2]
[373329213,1752947477514,-480.0,0.00019835,2]
[373329214,1752947477523,-480.0,0.00019835,2]
[373329215,1752947477532,-545.43,0.00019835,2]
[373329216,1752947477542,-732.98,0.00019835,2]
[373329217,1752947477552,-151.0,0.00019835,2]
[373329218,1752947477561,-480.0,0.00019835,2]
[373329219,1752947477571,-225.17,0.00019835,2]
[373329220,1752947477580,-480.0,0.00019835,2]
[373329221,1752947477589,-705.62,0.00019835,2]
[373329222,1752947477599,-480.0,0.00019835,2]
[373329223,1752947477608,-480.0,0.00019835,2]
[373329224,1752947477617,-480.0,0.00019835,2]
[373329225,1752947477627,-480.0,0.00019835,2]
[373329226,1752947477636,-480.0,0.00019835,2]
[373329227,1752947477645,-480.0,0.00019835,2]
[373329228,1752947477655,-479.66,0.00019835,2]
[373329229,1752947477665,-480.0,0.00019835,2]
[373329230,1752947477674,-480.0,0.00019835,2]
[373329231,1752947477684,-480.0,0.00019835,2]
[373329232,1752947477694,-480.0,0.00019835,2]
[373329233,1752947477703,-480.0,0.00019835,2]
[373329234,1752947477712,-480.0,0.00019835,2]
[373329235,1752947477721,-480.0,0.00019835,2]
[373329236,1752947477730,-480.0,0.00019835,2]
[373329237,1752947477739,-646.05,0.00019835,2]
[373329238,1752947477750,-480.0,0.00019835,2]
[373329239,1752947477761,-480.0,0.00019835,2]
[373329240,1752947477770,-566.96,0.00019835,2]
[373329241,1752947477779,-480.0,0.00019835,2]
[373329242,1752947477789,-1135.62,0.00019835,2]
[373329243,1752947477798,-480.0,0.00019835,2]
[373329244,1752947477807,-513.46,0.00019835,2]
[373329245,1752947477816,-480.0,0.00019835,2]
[373329246,1752947477826,-202.6044111,0.00019835,2]
[373329247,1752947477836,-480.0,0.00019835,2]
[373329248,1752947477846,-352.15794165,0.00019835,2]
[373329249,1752947477855,-480.0,0.00019835,2]
[373329250,1752947477864,-480.0,0.00019835,2]
[373329251,1752947477873,-480.0,0.00019835,2]
[373329252,1752947477883,-579.17,0.00019835,2]
[373329253,1752947477892,-480.0,0.00019835,2]
[373329254,1752947477901,-480.0,0.00019835,2]
[373329255,1752947477910,-480.0,0.00019835,2]
[373329256,1752947477919,-480.0,0.00019835,2]
[373329257,1752947477929,-512.86,0.00019835,2]
[373329258,1752947477939,-480.0,0.00019835,2]
[373329259,1752947477952,-340.0,0.00019835,2]
[373329260,1752947477962,-370.58,0.00019835,2]
[373329261,1752947477971,-480.0,0.00019835,2]
[373329262,1752947477981,-480.0,0.00019835,2]
[373329263,1752947477991,-480.0,0.00019835,2]
[373329264,1752947478000,-480.0,0.00019835,2]
[373329265,1752947478011,-480.0,0.00019835,2]
[373329266,1752947478021,-480.0,0.00019835,2]
[373329267,1752947478031,-587.46,0.00019835,2]
[373329268,1752947478040,-480.0,0.00019835,2]
[373329269,1752947478049,-480.0,0.00019835,2]
[373329270,1752947478058,-165.884658,0.00019835,2]
[373329271,1752947478068,-480.0,0.00019835,2]
[373329272,1752947478077,-684.65,0.00019835,2]
[373329273,1752947478086,-165.884658,0.00019835,2]
[373329274,1752947478095,-480.0,0.00019835,2]
[373329275,1752947478106,-480.0,0.00019835,2]
[373329276,1752947478115,-845.48,0.00019835,2]
[373329277,1752947478124,-480.0,0.00019835,2]
[373329278,1752947478133,-480.0,0.00019835,2]
[373329279,1752947478142,-480.0,0.00019835,2]
[373329280,1752947478151,-335.97,0.00019835,2]
[373329281,1752947478161,-487.4,0.00019835,2]
[373329282,1752947478170,-480.0,0.00019835,2]
[373329283,1752947478180,-480.0,0.00019835,2]
[373329284,1752947478189,-737.96,0.00019835,2]
[373329285,1752947478199,-480.0,0.00019835,2]
[373329286,1752947478209,-480.0,0.00019835,2]
[373329287,1752947478218,-480.0,0.00019835,2]
[373329288,1752947478227,-480.0,0.00019835,2]
[373329289,1752947478237,-480.0,0.00019835,2]
[373329290,1752947478247,-480.0,0.00019835,2]
[373329291,1752947478256,-493.38,0.00019835,2]
[373329292,1752947478267,-480.0,0.00019835,2]
[373329293,1752947478277,-480.0,0.00019835,2]
[373329294,1752947478287,-480.0,0.00019835,2]
[373329295,1752947478298,-1027.52,0.00019835,2]
[373329296,1752947478311,-480.0,0.00019835,2]
[373329297,1752947478321,-480.0,0.00019835,2]
[373329298,1752947478331,-1665.8,0.00019835,2]
[373329299,1752947478341,-684.14,0.00019835,2]
[373329300,1752947478349,-480.0,0.00019835,2]
[373329301,1752947478359,-480.0,0.00019835,2]
[373329302,1752947478368,-480.0,0.00019835,2]
[373329303,1752947478377,-866.32,0.00019835,2]
[373329304,1752947478387,-1613.96,0.00019835,2]
[373329305,1752947478396,-579.97,0.00019835,2]
[373329306,1752947478405,-653.05,0.00019835,2]
[373329307,1752947478414,-1511.88,0.00019835,2]
[373329308,1752947478424,-1760.29,0.00019835,2]
[373329309,1752947478435,-649.53,0.00019835,2]
[373329310,1752947478446,-480.0,0.00019835,2]
[373329311,1752947478455,-480.0,0.00019835,2]
[373329312,1752947478465,-548.64,0.00019835,2]
[373329313,1752947478474,-784.63,0.00019835,2]
[373329314,1752947478485,-769.17,0.00019835,2]
[373329315,1752947478495,-480.0,0.00019835,2]
[373329316,1752947478504,-480.0,0.00019835,2]
[373329317,1752947478515,-624.03,0.00019835,2]
[373329318,1752947478525,-480.0,0.00019835,2]
[373329319,1752947478535,-566.36,0.00019835,2]
[373329320,1752947478544,-480.0,0.00019835,2]
[373329321,1752947478553,-480.0,0.00019835,2]
[373329322,1752947478563,-565.68,0.00019835,2]
[373329323,1752947478572,-1541.23,0.00019835,2]
[373329324,1752947478582,-480.0,0.00019835,2]
[373329325,1752947478591,-1966.63,0.00019835,2]
[373329326,1752947478600,-1061.566029,0.00019835,2]
[373329327,1752947478609,-1071.078396,0.00019835,2]
[373329328,1752947478618,-1544.9,0.00019835,2]
[373329329,1752947478627,-480.0,0.00019835,2]
[373329330,1752947478635,-1964.37,0.00019835,2]
[373329331,1752947478644,-827.24,0.00019835,2]
[373329332,1752947478653,-4021.3,0.00019835,2]
[373329333,1752947478662,-977.88,0.00019835,2]
[373329334,1752947478671,-517.42,0.00019835,2]
[373329335,1752947478680,-480.0,0.00019835,2]
[373329336,1752947478689,-480.0,0.00019835,2]
[373329337,1752947478699,-752.96,0.00019835,2]
[373329338,1752947478709,-830.46,0.00019835,2]
[373329339,1752947478716,-499.4,0.00019835,2]
[373329340,1752947478723,-839.21,0.00019835,2]
[373329341,1752947478731,-881.13,0.00019835,2]
[373329342,1752947478739,-480.0,0.00019835,2]
[373329343,1752947478746,-507.57,0.00019835,2]
[373329344,1752947478753,-480.0,0.00019835,2]
[373329345,1752947478762,-1377.35,0.00019835,2]
[373329346,1752947478769,-799.51,0.00019835,2]
[373329347,1752947478778,-2449.77,0.00019835,2]
[373329348,1752947478785,-771.35,0.00019835,2]
[373329349,1752947478794,-480.0,0.00019835,2]
[373329350,1752947478805,-480.0,0.00019835,2]
[373329351,1752947478814,-480.0,0.00019835,2]
[373329352,1752947478824,-480.0,0.00019835,2]
[373329353,1752947478834,-2751.77,0.00019835,2]
[373329354,1752947478843,-556.56,0.00019835,2]
[373329355,1752947478852,-499.43,0.00019835,2]
[373329356,1752947478862,-3635.27,0.00019835,2]
[373329357,1752947478872,-712.0,0.00019835,2]
[373329358,1752947478882,-480.0,0.00019835,2]
[373329359,1752947478892,-707.84,0.00019835,2]
[373329360,1752947478902,-555.4,0.00019835,2]
[373329361,1752947478911,-657.33,0.00019835,2]
[373329362,1752947478920,-626.32,0.00019835,2]
[373329363,1752947478930,-530.66,0.00019835,2]
[373329364,1752947478943,-659.38,0.00019835,2]
[373329365,1752947478953,-891.68,0.00019835,2]
[373329366,1752947478963,-1132.469178,0.00019835,2]
[373329367,1752947478973,-480.0,0.00019835,2]
[373329368,1752947478983,-651.47,0.00019835,2]
[373329369,1752947478992,-480.0,0.00019835,2]
[373329370,1752947479002,-664.87,0.00019835,2]
[373329371,1752947479013,-480.0,0.00019835,2]
[373329372,1752947479024,-1573.49,0.00019835,2]
[373329373,1752947479033,-1091.37,0.00019835,2]
[373329374,1752947479044,-1090.26,0.00019835,2]
[373329375,1752947479054,-3159.4,0.00019835,2]
[373329376,1752947479065,-704.05,0.00019835,2]
[373329377,1752947479075,-713.41,0.00019835,2]
[373329378,1752947479085,-480.0,0.00019835,2]
[373329379,1752947479095,-566.08,0.00019835,2]
[373329380,1752947479106,-316.10741327,0.00019835,2]
[373329381,1752947479116,-480.0,0.00019835,2]
[373329382,1752947479126,-656.68,0.00019835,2]
[373329383,1752947479135,-620.64,0.00019835,2]
[373329384,1752947479146,-2150.51,0.00019835,2]
[373329385,1752947479155,-480.0,0.00019835,2]
[373329386,1752947479165,-1450.72,0.00019835,2]
[373329387,1752947479174,-968.85,0.00019835,2]
[373329388,1752947479184,-480.0,0.00019835,2]
[373329389,1752947479195,-480.0,0.00019835,2]
[373329390,1752947479205,-914.06,0.00019835,2]
[373329391,1752947479215,-480.0,0.00019835,2]
[373329392,1752947479225,-528.66,0.00019835,2]
[373329393,1752947479235,-1429.57,0.00019835,2]
[373329394,1752947479246,-714.08,0.00019835,2]
[373329395,1752947479258,-738.22,0.00019835,2]
[373329396,1752947479269,-649.1,0.00019835,2]
[373329397,1752947479279,-480.0,0.00019835,2]